Workbook

Sheet 2(定)
A1: 附件2
A2: 2019年全区公共租赁住房分配情况通报表
A3: （截至2019年11月25日）
A4: 序号 | B4: 城市 | C4: 总套数（套） | E4: 截至2019年11月已分配套数（套） | G4: 分配比例 | H4: 排名 | I4: 2018年12月份正在入住数 | K4: 第一批盘活套数 | L4: 第二批盘活套数
D5: 计划内开工套数（套） | F5: 其中：2019年1-11月新增分配套数
A8: 编号栏 | C8: 1 | D8: 2 | E8: 3 | F8: 4 | G8: 5=（3/2）*100% | H8: 6 | K8: 3625 | L8: 5392
A9: 合计 | C9: =SUM(C10:C26) -> 473631 | D9: 471706 | E9: 440283 | F9: 16948 | G9: =E9/D9 -> 93.34% | H9: - | I9: 396080
A10: 1 | B10: 南宁市 | C10: 81218 | D10: =79452+108 -> 79560 | E10: 75208 | F10: 2704 | G10: =(E10/D10) -> 94.53% | H10: 5 | I10: 73471
A11: 2 | B11: 柳州市 | C11: =50121-L11 -> 47159 | D11: =50121-L11 -> 47159 | E11: 43053 | F11: 1626 | G11: 91.29% | H11: 11 | I11: 44082 | L11: 2962
A12: 3 | B12: 桂林市 | C12: =41161-L12 -> 39381 | D12: =41161-L12 -> 39381 | E12: 35867 | F12: 1188 | G12: 91.08% | H12: 13 | I12: 35243 | L12: 1780
A13: 4 | B13: 梧州市 | C13: =D13 -> 38529 | D13: =39382-450-L13 -> 38529 | E13: 35241 | F13: 1051 | G13: 91.47% | H13: 10 | I13: 34802 | K13: 450 | L13: 403 | M13: 系统台账留有一个第二批盘活的公租房项目，建议直接在系统台账删除该项目
A14: 5 | B14: 北海市 | C14: 19100 | D14: 19100 | E14: 18510 | F14: 825 | G14: 96.91% | H14: 2 | I14: 17815
A15: 6 | B15: 防城港市 | C15: 10118 | D15: =10213-K15 -> 10118 | E15: 9258 | F15: 378 | G15: 91.50% | H15: 9 | I15: 9318 | K15: 95
A16: 7 | B16: 钦州市 | C16: 29527 | D16: 29527 | E16: 26951 | F16: 2023 | G16: 91.28% | H16: 12 | I16: 27056
A17: 8 | B17: 贵港市 | C17: 30434 | D17: 30420 | E17: 27680 | F17: 2203 | G17: 90.99% | H17: 14 | I17: 28270
A18: 9 | B18: 玉林市 | C18: 24704 | D18: 24704 | E18: 22949 | F18: 522 | G18: 92.90% | H18: 8 | I18: 22700
A19: 10 | B19: 百色市 | C19: 46017 | D19: =46205-K19 -> 45721 | E19: 44804 | F19: 723 | G19: 97.99% | H19: 1 | I19: 44470 | K19: 484 | M19: 第二批已盘活136套，但未退回资金，百色市未在系统台账核减
A20: 11 | B20: 贺州市 | C20: =D20+18+1-108 -> 19374 | D20: =20281-K20-L20-108 -> 19463 | E20: 18126 | F20: 1287 | G20: 93.13% | H20: 7 | I20: 17553 | K20: 463 | L20: 247
A21: 12 | B21: 河池市 | C21: =D21 -> 38063 | D21: =38642-579 -> 38063 | E21: 36255 | F21: 257 | G21: 95.25% | H21: 4 | I21: 36486 | K21: 579
A22: 13 | B22: 来宾市 | C22: 29236 | D22: 29236 | E22: 27553 | F22: 614 | G22: 94.24% | H22: 6 | I22: 27663
A23: 14 | B23: 崇左市 | C23: =19614-1554-3 -> 18057 | D23: =19565-1554 -> 18011 | E23: 17341 | F23: 307 | G23: 96.28% | H23: 3 | I23: 17039 | K23: 1554
A25: 15 | B25: 区直 | C25: 2467 | D25: 2467 | E25: 1240 | F25: 1240 | G25: =(E25/D25) -> 50.26% | I25: 411
A26: 16 | B26: 宁铁 | C26: 247 | D26: 247 | E26: 247 | F26: 0 | G26: =(E26/D26) -> 100.00% | I26: 247
